Cogmind - Beta 16 @@@ ROGUE MODE // 2025.12.06 @ 18:37:50 Player: Mozco Result: Destroyed by G-47 Trooper with Particle Gun Performance ------------- Evolutions (0) 0 Regions Visited (2) 400 Robots Destroyed (14) 70 Value Destroyed (315) 315 Prototype IDs (0) 0 Alien Tech Used (0) 0 Bonus (0) 0 TOTAL SCORE: 785 Bonus ------- None Cogmind --------- Core Integrity 0/250 Matter 205/300 Energy 38/100 System Corruption 3% Temperature Cool (9) Movement Treading (160) Location -10/Mines Parts ------- > --- POWER (1) -------- (None) > --- PROPULSION (2) --- Improved Treads Improved Treads > --- UTILITY (2) ------ Large Storage Unit > --- WEAPON (2) ------- EM Pulse Gun Assault Rifle > --- INVENTORY (15) --- Ion Engine Ion Engine Improved Treads Improved Treads Disposable Heat Sink Light EM Pulse Cannon Light EM Pulse Cannon Light EM Pulse Cannon Light EM Pulse Cannon Grenade Launcher Datajack Peak State ------------ > --- POWER ------------ Ion Engine > --- PROPULSION ------- Light Treads Light Treads > --- UTILITY ---------- Disposable Heat Sink Large Storage Unit > --- WEAPON ----------- Assault Rifle Light Assault Rifle > --- INVENTORY -------- Ion Engine Ion Engine Improved Treads Improved Treads Improved Treads Improved Treads EM Pulse Gun Small Laser Light EM Pulse Cannon Light EM Pulse Cannon Light EM Pulse Cannon Light EM Pulse Cannon Assault Rifle Assault Rifle Grenade Launcher [Rating: 10] Favorites ----------- Power Ion Engine Engine Ion Engine Propulsion Light Treads Treads Light Treads Utility Large Storage Unit Device Disposable Heat Sink Storage Large Storage Unit Weapon Assault Rifle Energy Gun Small Laser Ballistic Gun Assault Rifle Launcher Grenade Launcher Build | -11 -10 -10 ------- Run | Yrd Mat Min Slots Evolved . | . . . Power . | . . . Propulsion . | . . . Utility . | . . . Weapon . | . . . Parts Attached 15 | 6 5 4 Power 1 | 1 . . Engine 1 | 1 . . Core . | . . . Reactor . | . . . Propulsion 4 | 2 . 2 Treads 4 | 2 . 2 Leg . | . . . Wheel . | . . . Hover . | . . . Flight . | . . . Utility 3 | 1 2 . Device 1 | . 1 . Storage 2 | 1 1 . Processor . | . . . Hackware . | . . . Protection . | . . . Artifact . | . . . Weapon 7 | 2 3 2 Energy Gun 2 | 1 . 1 Energy Cannon . | . . . Ballistic Gun 4 | 1 2 1 Ballistic Cannon . | . . . Launcher 1 | . 1 . Special Weapon . | . . . Impact Weapon . | . . . Slashing Weapon . | . . . Piercing Weapon . | . . . Special Melee Weapon . | . . . Unidentified Prototypes . | . . . Parts Lost 6 | . . 6 Power 1 | . . 1 Propulsion 2 | . . 2 Utility 1 | . . 1 Weapon 2 | . . 2 Highest Loss Streak 6 | . . 6 To Critical Strikes . | . . . Average Backups 9 | . 8 14 Power 1 | . 1 2 Propulsion 2 | . 1 3 Utility . | . . 1 Weapon 4 | . 4 6 Tool/Special . | . . . Unused Backups 10 | . . 10 Power 2 | . . 2 Propulsion 2 | . . 2 Utility 1 | . . 1 Weapon 4 | . . 4 Tool/Special 1 | . . 1 Average Slot Usage (%) 95 | . 93 98 Engine 13 | . 14 13 Treads 28 | . 28 28 Device 7 | . 4 12 Storage 15 | . 17 14 Energy Gun 2 | . 3 . Ballistic Gun 24 | . 22 27 Launcher 1 | . 2 . Peak Build Rating 10 | 6 10 10 Average Rating 8 | 4 7 9 On Entrance 5 | . 6 10 Avg Prop Armor Cover (%) . | . . . Naked Turns . | . . . Heaviest Build 33 | 12 33 30 Greatest Support 40 | 40 40 40 Greatest Overweight (x) . | . . . Average Overweight (x) . | . . . Largest Inventory Capacity 15 | 8 15 15 Average Capacity 12 | 7 12 15 Most Carried 15 | 2 15 15 Average Carried 9 | . 8 14 Final Capacity 15 | 8 15 15 Final Carried 15 | 2 15 11 Class Distribution -------------------- 100% | Mutant Dominant Class ---------------- Mutant | -10/Materials Mutant | -10/Mines Resources | -11 -10 -10 ----------- Run | Yrd Mat Min Matter Collected 372 | 213 159 . Remotely . | . . . Salvage Created 311 | . 269 42 Parts 29 | . 26 3 Haulers Intercepted . | . . . Recyclers Shooed 1 | . 1 . Parts Field Recycled . | . . . Retrieved Matter . | . . . Parts Self-Destructed . | . . . Prevented . | . . . Parts Restored . | . . . Kills | -11 -10 -10 ------- Run | Yrd Mat Min Combat Hostiles Destroyed 9 | . 8 1 Guns 6 | . 5 1 AOE 3 | . 3 . Classes Destroyed 7 | . 6 1 Worker 1 | . 1 . Recycler 1 | . 1 . Mechanic 1 | . 1 . Watcher 2 | . 2 . Swarmer 3 | . 3 . Grunt 5 | . 5 . Demolisher 1 | . . 1 Best Kill Streak 9 | . 9 1 Combat Bots Only 3 | . 3 1 Max Kills in Single Turn 3 | . 3 1 Gunslinging . | . . . Exploded 2 | . 2 . Melee . | . . . Uniques/NPCs Destroyed . | . . . Combat | -11 -10 -10 -------- Run | Yrd Mat Min Hostile Shots Fired 51 | . 20 31 Missed 13 | . 6 7 Hits 38 | . 14 24 Projectile 38 | . 14 24 AOE 19 | . . 19 Damage Taken 1004 | . 138 866 Core 256 | . 31 225 Absorbed by Shields . | . . . Core Remaining (%) 100 | 100 . . Volleys Fired 37 | 1 25 11 Largest 2 | 2 2 2 Hottest 60 | 60 60 60 Shots Fired 68 | 2 44 22 Gun 65 | 2 41 22 Cannon . | . . . Launcher 3 | . 3 . Special . | . . . Kinetic 51 | 1 31 19 Thermal 11 | 1 10 . Explosive 3 | . 3 . Electromagnetic 3 | . . 3 Robot Hit Streak 6 | 1 6 4 Robot Miss Streak 5 | 1 5 1 Penetration Max . | . . . Secondary Targets 1 | . 1 . Max Gunslinging Chain 1 | . 1 . Shots Hit Robots 42 | 1 26 15 Core Hits 28 | 1 22 5 Critical Kills . | . . . Critical Parts Destroyed . | . . . Critical Strikes . | . . . Melee Attacks . | . . . Impact . | . . . Slashing . | . . . Piercing . | . . . Sneak Attacks . | . . . Combat Hostiles . | . . . Follow-up Attacks . | . . . Damage Inflicted 713 | 11 508 194 Guns 475 | 11 270 194 Cannons . | . . . Explosions 238 | . 238 . Melee . | . . . Ramming . | . . . Kinetic 384 | . 212 172 Thermal 69 | 11 58 . Explosive 238 | . 238 . Electromagnetic 22 | . . 22 Impact . | . . . Slashing . | . . . Piercing . | . . . Highest Corruption 3 | . 3 3 Average Corruption 2 | . 2 3 Corruption Purged . | . . . Corruption Blocked . | . . . Effects 7 | . . 7 Heat Flow Errors 1 | . . 1 Energy Discharges 1 | . . 1 Data Loss (minor) 3 | . . 3 Misfires 1 | . . 1 Weapon Failures 1 | . . 1 Overload Shots . | . . . Overflow Damage . | . . . Projectiles . | . . . Explosions . | . . . Melee . | . . . Knockbacks . | . . . Impact . | . . . Kinetic . | . . . Secondary . | . . . Self-Inflicted Damage . | . . . Shots . | . . . Rammed . | . . . Targets Rammed . | . . . Kicked . | . . . Crushed . | . . . Highest Temperature 176 | 20 78 176 Average Temperature 52 | 15 40 80 Received Heat Transfer 126 | . 42 84 Siege Activations . | . . . Martial Activations . | . . . Shielding Activations . | . . . Robots Disrupted . | . . . Combat Hostiles . | . . . Robots Corrupted . | . . . Combat Hostiles . | . . . Parts Fried . | . . . Impact Corruptions . | . . . Robots Melted . | . . . Combat Hostiles . | . . . Parts Melted . | . . . Heat Transferred 150 | 25 125 . Parts Sabotaged . | . . . Parts Stolen . | . . . Parts Stripped . | . . . Power Chain Reactions . | . . . Alert | -11 -10 -10 ------- Run | Yrd Mat Min Maximum Alert Level . | . . . Low Security (%) 100 | 100 100 100 Level 1 . | . . . Level 2 . | . . . Level 3 . | . . . Level 4 . | . . . Level 5 . | . . . High Security . | . . . Max Security . | . . . Peak Influence 196 | . 196 63 Initial 63 | . . 63 Average 71 | . 116 19 Influence Increases 382 | . 352 30 Destroy 0b10 Robot/C 180 | . 160 20 Destroy 0b10 Robot/NC 25 | . 25 . Destroy Leader 54 | . 44 10 Successful Hack 25 | . 25 . Select Force Hacks 60 | . 60 . Disable Machine 15 | . 15 . Destroy Structure 23 | . 23 . Influence Decreases 382 | . 189 193 Entered New Map 100 | . . 100 Time Decay 252 | . 189 63 Lost Part 30 | . . 30 Squads Dispatched 5 | . 5 . Investigation 4 | . 4 . Extermination . | . . . Reinforcement 1 | . 1 . Assault . | . . . Garrison . | . . . Intercept . | . . . Searches Triggered . | . . . Construction Impeded . | . . . Haulers Reinforced . | . . . Active Scanning Responses . | . . . Cargo Convoy Interrupts . | . . . Stealth | -11 -10 -10 --------- Run | Yrd Mat Min Distress Signals . | . . . Communications Jammed . | . . . Distress Signals . | . . . Times Spotted 16 | . 12 4 Peak Tracking Total 3 | . 3 3 Tactical Retreats . | . . . Traps | -11 -10 -10 ------- Run | Yrd Mat Min Traps Triggered 2 | . 2 . Indirectly . | . . . Trap Hack Attempts . | . . . Triggered . | . . . Disarmed . | . . . Reprogrammed . | . . . Reused . | . . . Traps Extracted . | . . . Installed . | . . . Triggered . | . . . Machines | -11 -10 -10 ---------- Run | Yrd Mat Min Machines Disabled 1 | . 1 . Max in Single Turn 1 | . 1 . Machines Repaired . | . . . Machines Dismantled . | . . . Machines Sabotaged . | . . . Overloaded Fab Kills . | . . . Hacking | -11 -10 -10 --------- Run | Yrd Mat Min Machines Accessed 6 | . 6 . Terminals 4 | . 4 . Fabricators . | . . . Repair Stations . | . . . Recycling Units 2 | . 2 . Scanalyzers . | . . . Garrison Access . | . . . Total Hacks 18 | . 18 . Successful 8 | . 8 . Failed 9 | . 9 . Catastrophic 2 | . 2 . Database Lockouts 1 | . 1 . Manual 19 | . 19 . Terminals 14 | . 14 . Fabricators . | . . . Repair Stations . | . . . Recycling Units 4 | . 4 . Scanalyzers . | . . . Garrison Access . | . . . Terminal Hacks 5 | . 5 . Robot Analysis 5 | . 5 . Fabricator Hacks . | . . . Repair Station Hacks . | . . . Recycling Unit Hacks . | . . . Scanalyzer . | . . . Garrison Access Hacks . | . . . Unauthorized Hacks 3 | . 3 . Terminals 1 | . 1 . Botnet 1 | . 1 . Fabricators . | . . . Repair Stations . | . . . Recycling Units 2 | . 2 . Tunnel 2 | . 2 . Scanalyzers . | . . . Garrison Access . | . . . Data Cores Recovered . | . . . Used . | . . . Hacking Detections 4 | . 4 . Full Trace Events 3 | . 3 . Feedback Events . | . . . Feedback Blocked . | . . . Robot Schematics Acquired . | . . . Robots Built . | . . . Authchips . | . . . Time . | . . . Total Robot Build Rating . | . . . Part Schematics Acquired . | . . . Parts Built . | . . . Authchips . | . . . Time . | . . . Total Part Build Rating . | . . . Part Studies Acquired . | . . . Parts Repaired . | . . . Time . | . . . Parts Recycled . | . . . Recycled Matter . | . . . Retrieved Matter . | . . . Retrieved Components . | . . . Parts Scanalyzed . | . . . Part Schematics Acquired . | . . . Parts Damaged . | . . . Bothacking | -11 -10 -10 ------------ Run | Yrd Mat Min Used RIF Installer . | . . . Robots Hacked . | . . . Non-combat . | . . . Combat . | . . . Robot Hacks Applied . | . . . Relay Couplers Released . | . . . Fabnet Peak Effective % . | . . . Robots Rewired . | . . . Allies Hacked . | . . . Hacks Repelled . | . . . Allies | -11 -10 -10 -------- Run | Yrd Mat Min Total Allies 3 | . . 3 Largest Group 3 | . . 3 Highest-Rated Group 40 | . . 40 Highest-Rated Ally 16 | . . 16 Total Orders . | . . . Ally Attacks 6 | . . 6 Total Damage 66 | . . 66 Kills . | . . . Allies Corrupted . | . . . Allies Melted . | . . . Intel | -11 -10 -10 ------- Run | Yrd Mat Min Active Infowar (turns) . | . . . Robot Analysis Total 5 | . 5 . Derelict Logs Recovered 1 | . . 1 Drone Launches . | . . . Drone Recoveries . | . . . Exploration | -11 -10 -10 ------------- Run | Yrd Mat Min Turns Passed 785 | 90 442 253 Spaces Moved 407 | 51 220 136 Core 4 | 4 . . Treads 403 | 47 220 136 Legs . | . . . Wheels . | . . . Hover . | . . . Flight . | . . . Fastest Speed 50 | 50 160 160 Average Speed 158 | 151 160 160 Slowest Speed 160 | 160 160 160 Overloaded Moves . | . . . Propulsion Burnouts . | . . . Robots Hopped . | . . . Potential Cave-ins . | . . . Cave-ins Triggered . | . . . Exploration Rate (%) 28 | 5 47 34 Regions Visited 2 Branch Regions 1 Pre-discovered Areas 2 | . 2 . Known Exits Taken . | . . . Unknown Exits Taken 2 | 1 1 . Scrap Searched . | . . . Spaces Dug 10 | . 10 . Terrain Destroyed 28 | . 28 . Melee . | . . . Projectile . | . . . AOE 28 | . 28 . Terrain Rammed . | . . . Walls Destroyed . | . . . Machines Disabled . | . . . Actions | -11 -10 -10 --------- Run | Yrd Mat Min Total 479 | 59 269 151 Wait 2 | . 2 . Move 405 | 50 219 136 Hop . | . . . Pick Up 17 | 2 15 . Fast Attach 8 | 6 2 . Attach 5 | . 1 4 Detach . | . . . Swap 2 | . 2 . Drop 3 | . 3 . Fire 37 | 1 25 11 Melee . | . . . Ram . | . . . Kick . | . . . Crush . | . . . Escape Stasis . | . . . Rewire . | . . . Trap . | . . . Miscellaneous . | . . . Route ------- -11/Scrapyard -10/Materials (discovered 2 exits: [*Mat] / [*Min]) -10/Mines History --------- Turn | Location | Event 6 | -11/Scrapyard | Discovered new exit (range 16) 91 | -11/Scrapyard | Entered Materials 318 | -10/Materials | Build established: Mutant 318 | -10/Materials | Discovered new exit (range 13) 321 | -10/Materials | Central database locked down 506 | -10/Materials | Discovered new exit (range 15) 533 | -10/Materials | Entered Mines 537 | -10/Mines | Assisted by bots powering up and referring to "LRC-V3" 676 | -10/Mines | Learned 2 Materials zone layouts 744 | -10/Mines | Assembled infested the area 766 | -10/Mines | Core integrity fell below 50% 775 | -10/Mines | Core integrity fell below 20% 785 | -10/Mines | Lost 3 allies 786 | -10/Mines | Destroyed by G-47 Trooper with Particle Gun Last Messages --------------- 00750_ Trooper 1a destroyed. 00750_ Mercenary 1a destroyed. 00754_ Trooper 1b destroyed. 00756_ The unstable cave ceiling collapses. 00757_ D-53 Grenadier destroyed. 00759_ The unstable cave ceiling collapses. 00763_ Disposable Heat Sink destroyed. 00766_ System corrupted: Heat flow error (+168). 00770_ Ion Engine destroyed. 00770_ Assault Rifle destroyed. 00772_ The unstable cave ceiling collapses. 00772_ G-34 Mercenary destroyed. 00774_ Lgt. Treads destroyed. 00775_ The unstable cave ceiling collapses. 00776_ Assault Rifle destroyed. 00777_ The unstable cave ceiling collapses. 00778_ Lgt. Treads destroyed. 00782_ The unstable cave ceiling collapses. 00782_ System corrupted: Assault Rifle jammed. 00784_ The unstable cave ceiling collapses. Map ----- +----------------------------------------------------+ | ??????## #????? #????????????????????? | | ???????# # ##????? #????????????????????? | | ???????# ####?????? #????????????????????? | | ???????# ####?????? #????????????????????? | | ???????# #?????? ????????????????????? | | ???????##### #??????##????????????????????? | | ???????????# #????????????????????????????? | | ???????????# #????????????????????????????? | | ??????????## #??????????###???????????????? | | ?????????## ##???????? ????????????????? | | ????????## #??????## #?????????????????? | | ????????# #?????# ##????????????????? | | ????????# #????# ### #????????????? | | ????????# ##???# ??????????????? | | ????????# ##?## #?????????????????? | | ????????# ### #????????????????????? | | ???????## #????####?????????????? | | ???##### ^ ##???# ##????????????? | | ??## # # ###### ##???????????? | | ?## ^^# # #####???????? | | ?# # # %[ #???????? | | ?# ## ## d =g= % ????????? | | ?## ## !%] #???????????? | | ??### #### #????????????? | | ????## #??# #????????????? | | ?????## #??# @ #????????????? | | ??????#####??# # ##????????????? | | ?????????????# ####?????????????? | | ?????????????## #####????????????????? | | ??????????????## ##???????????????????? | | ???????????????#######????????????????????? | | ??????????????????????????????????????????? | | ??????????????????????????????????????????? | | | | | | | | | | | | | | | | | | | | | | | | | | | | | | | | | | | +----------------------------------------------------+ Best States ------------- Heat Dissipation 25 Coolant Potential 50 Energy Generation 10 Energy Capacity 250 Matter Stores 300 Matter Capacity 300 Sight Range 16 Terrain Scan Density 10 Evasion (%) 40 Recoil Reduction 2 Item Schematics ----------------- None Robot Schematics ------------------ None Fabricated ------------ Nothing Repaired ---------- Nothing Studied --------- None Alien Tech Used ----------------- None Achievements -------------- None Challenges ------------ None Game ------ Seed ChromionShockboltStrikerail Manual? 0 Play Time 00:06:31 Cumulative 381.8 hours Start 2025.12.06 @ 18:32:13 End 2025.12.06 @ 18:37:50 Sessions 1 Manual Loads 0 Difficulty Rogue Special Mode None Game No. 391 Rogue 387 Adventurer 3 Explorer 1 Win Type - Total 5 Types 4/0/1/0/0/0/0/0/0/0 Lore% 85 Gallery% 80 Achievement% 67 Wizard Run 0 Options --------- Layout 0 ASCII 0 Keyboard 0 Movement Mouse Keybinds 0 Fullscreen 2 Font 18/SmallcapsGlow Map View 76x50 Zoom Use 0% Tactical HUD 1 Map Filters NONE Filters NONE Steam 1 RUN: b0a12529-b7fc-445d-a03d-f990e7958b82